[Event "Czech Open-GM 2022"]
[Site "Pardubice"]
[Date "2022.07.27"]
[Round "6.19"]
[White "Sarkar, Justin"]
[Black "Soham Datar"]
[Result "1-0"]
[ECO "B23"]
[WhiteElo "2346"]
[BlackElo "2111"]
[Annotator "TA"]
[PlyCount "139"]
[EventDate "2022.07.22"]
[EventType "swiss"]
[EventCountry "CZE"]
[SourceTitle "playchess.com"]
[Source "ChessBase"]
[SourceQuality "1"]
[TimeControl "40/5400+30:1800+30"]

{[%evp 9,138,19,16,8,30,22,47,46,52,36,51,14,15,23,35,10,19,22,22,22,27,27,110,47,55,0,0,0,0,0,0,0,20,32,24,24,26,16,33,30,45,13,18,15,113,114,119,120,122,116,121,120,123,125,137,106,110,99,106,104,119,108,110,107,119,110,131,133,145,140,136,133,125,84,325,325,325,313,262,270,331,320,330,340,313,287,655,655,655,635,782,767,972,923,29976,29977,29976,29977,29978,29979,29979,29980,29980,29981,29982,29983,29983,29984,29984,29984,29984,29985,29985,29986,29986,29987,29987,29988,29988,29989,29989,29990,29992,29992,29993,29992,29992,29993,29993,29994,29999]} 1. e4 {[%emt 0:00:03]} c5 {[%emt 0:01:27]} 2. Nc3 {[%emt 0:00:23]} a6 {[%emt 0:00:15]} 3. g3 {[%emt 0:01:17]} g6 {[%emt 0:01:01]} 4. Bg2 {[%emt 0:02:27]} Bg7 {[%emt 0:00:07]} 5. d3 {[%emt 0:01:56]} Nc6 {[%emt 0:00:10]} 6. Be3 {[%emt 0:00:44] B24: Closed Sicilian: 3 g3 sidelines.} Nd4 {[%emt 0:01:35]} 7. Qd2 {[%emt 0:00:38]} e6 {[%emt 0:00:24]} 8. Nd1 {[%emt 0:00:32] White is slightly better.} d6 {[%emt 0:02:02]} 9. c3 {[%emt 0:00:14]} Nc6 {[%emt 0:00:04]} 10. d4 {[%emt 0:07:43]} cxd4 {[%emt 0:00:11]} 11. cxd4 {[%emt 0:00:03] [#]} Nge7 $146 {[%emt 0:00:19]} ({Predecessor:} 11... Rb8 12. Ne2 Nge7 13. f4 d5 14. e5 Nf5 15. Bf2 O-O 16. O-O b5 17. g4 Nfe7 {1-0 (34) Fonseca Rodrigues,E (1964)-Lima,A (1804) Fortaleza 2015}) 12. Ne2 {[%emt 0:16:48]} d5 {[%emt 0:02:01]} 13. Bh6 {[%emt 0:00:37]} Bxh6 {[%emt 0:03:22]} 14. Qxh6 {[%emt 0:00:03]} dxe4 {[%emt 0:00:06]} 15. Bxe4 {[%emt 0:00:15]} e5 {[%emt 0:33:56]} (15... Nxd4 $2 16. Qg7 Rg8 17. Qxd4 $18) (15... Ng8 $11 {remains equal.} 16. Qd2 Nf6) 16. dxe5 {[%emt 0:15:00]} (16. Ndc3 $16) 16... Bf5 $14 {[%emt 0:01:40]} (16... Nxe5 $2 17. Qg7 Nd3+ 18. Bxd3 $18) 17. Ndc3 {[%emt 0:08:40]} ({White should play} 17. Bg2 $1 $14) 17... Bxe4 $11 {[%emt 0:08:51]} 18. Nxe4 {[%emt 0:00:04][%cal Re4f6] [#]} Nf5 {[%emt 0:00:47]} 19. Qf4 {[%emt 0:02:48] g4 is the strong threat.} Qa5+ {[%emt 0:01:26]} 20. N2c3 {[%emt 0:00:08]} Qxe5 {[%emt 0:02:47]} 21. Qxe5+ {[%emt 0:00:15]} Nxe5 {[%emt 0:00:03]} 22. O-O-O {[%emt 0:00:09]} O-O {[%emt 0:01:28]} 23. Rd5 {[%emt 0:00:45]} Nc6 {[%emt 0:00:49]} 24. Rhd1 {[%emt 0:00:50]} Rfd8 {[%emt 0:04:39]} 25. Nc5 {[%emt 0:04:19]} Rxd5 $1 {[%emt 0:02:56]} 26. Nxd5 {[%emt 0:01:58]} Nfd4 {[%emt 0:07:06]} (26... Rb8 $11) 27. Nxb7 $16 {[%emt 0:06:03] White is more active.} Rb8 {[%emt 0:01:41]} 28. Nc5 {[%emt 0:01:14]} Rb5 {[%emt 0:01:41] [#]} 29. Ne4 {[%emt 0:02:19]} Kg7 {[%emt 0:00:13]} 30. Nec3 {[%emt 0:01:51]} Rb7 {[%emt 0:01:31]} 31. h4 {[%emt 0:00:30]} h5 {[%emt 0:00:35]} 32. Re1 {[%emt 0:00:44]} Nf3 {[%emt 0:00:48]} 33. Re8 {[%emt 0:01:36]} Nfe5 {[%emt 0:00:07]} 34. Rc8 {[%emt 0:14:11]} Nd4 {[%emt 0:01:28]} 35. b3 {[%emt 0:03:14]} Ng4 {[%emt 0:00:48]} 36. Kd2 {[%emt 0:01:42]} Rd7 {[%emt 0:03:01]} 37. Rc4 {[%emt 0:02:55]} Nf3+ {[%emt 0:03:50]} 38. Ke2 {[%emt 0:00:10]} Ng1+ {[%emt 0:02:02]} 39. Kf1 {[%emt 0:00:45]} Nf3 {[%emt 0:00:37]} 40. Rf4 {[%emt 0:02:34]} Nfe5 {[%emt 0:00:33]} 41. f3 {[%emt 0:31:53]} Nxf3 {[%emt 0:35:04] This move loses the game for Black.} 42. Rxf3 $18 {[%emt 0:00:19]} Nh2+ {[%emt 0:00:02]} 43. Kg2 {[%emt 0:00:24]} Nxf3 {[%emt 0:00:04]} 44. Kxf3 {[%emt 0:00:04]} f6 {[%emt 0:00:04]} 45. b4 {[%emt 0:00:00]} g5 {[%emt 0:00:00]} 46. a4 {[%emt 0:00:00][%cal Ba2a4,Ba4a5][%mdl 32]} Kf7 {[%emt 0:00:00]} 47. a5 {[%emt 0:00:00]} Ke6 $2 {[%emt 0:00:00]} (47... Rd8 48. b5 axb5) 48. b5 {[%emt 0:00:00]} axb5 {[%emt 0:00:00]} 49. a6 {[%emt 0:00:00]} Ke5 {[%emt 0:00:00]} 50. Nb4 {[%emt 0:00:00]} Kd4 {[%emt 0:00:00]} 51. a7 {[%emt 0:00:00]} Rxa7 {[%emt 0:00:00]} 52. Nxb5+ {[%emt 0:00:00] White mates.} Kc5 {[%emt 0:00:00]} 53. Nxa7 {[%emt 0:00:00]} Kxb4 {[%emt 0:00:00] KN-K3P} 54. Ke4 {[%emt 0:00:00]} Kc5 {[%emt 0:00:00]} 55. Kf5 {[%emt 0:00:00][%csl LRf6,LRg5]} gxh4 {[%emt 0:00:00]} 56. gxh4 {[%emt 0:00:00]} Kd4 {[%emt 0:00:00]} 57. Kxf6 {[%emt 0:00:00] KN-KP} Ke4 {[%emt 0:00:00]} 58. Kg5 {[%emt 0:00:00]} Ke5 {[%emt 0:00:00]} 59. Nb5 {[%emt 0:00:00]} Ke6 {[%emt 0:00:00]} 60. Nd4+ {[%emt 0:00:00]} Kf7 {[%emt 0:00:00]} 61. Kxh5 {[%emt 0:00:00]} Kf6 {[%emt 0:00:00]} 62. Kh6 {[%emt 0:00:00]} Kf7 {[%emt 0:00:00]} 63. Kg5 {[%emt 0:00:00]} Kg7 {[%emt 0:00:00]} 64. h5 {[%emt 0:00:00][%cal Bh4h5,Bh5h6,Bh6h7][%mdl 32]} Kh7 {[%emt 0:00:00]} 65. h6 {[%emt 0:00:00]} Kh8 {[%emt 0:00:00]} 66. Kg6 {[%emt 0:00:00]} Kg8 {[%emt 0:00:00]} 67. Nf5 {[%emt 0:00:00]} Kh8 {[%emt 0:00:00]} 68. Nd6 {[%emt 0:00:00]} Kg8 {[%emt 0:00:00]} 69. h7+ {[%emt 0:00:00]} Kh8 {[%emt 0:00:00]} 70. Nf7# {[%emt 0:00:00] Weighted Error Value: White=0.07 (flawless) /Black=0.32} 1-0

[Event "Czech Open-GM 2022"]
[Site "Pardubice"]
[Date "2022.07.27"]
[Round "6.20"]
[White "Crevatin, Leo"]
[Black "Farkas, Gabor"]
[Result "1/2-1/2"]
[ECO "D45"]
[WhiteElo "2259"]
[BlackElo "2335"]
[Annotator "TA"]
[PlyCount "81"]
[EventDate "2022.07.22"]
[EventType "swiss"]
[EventCountry "CZE"]
[SourceTitle "playchess.com"]
[Source "ChessBase"]
[SourceQuality "1"]
[TimeControl "40/5400+30:1800+30"]

{[%evp 18,81,11,4,10,-12,-2,-18,-18,-18,-20,-15,-19,-17,-15,-17,0,0,8,-8,0,-27,0,0,0,0,0,0,0,0,0,-9,0,0,0,-16,-8,-46,-53,-58,0,0,0,0,0,0,0,0,0,0,0,0,0,0,0,0,0,0,0,0,0,0,0,0,0,0]} 1. d4 {[%emt 0:00:01]} d5 {[%emt 0:00:06]} 2. c4 {[%emt 0:00:05]} e6 {[%emt 0:00:04]} 3. Nf3 {[%emt 0:00:05]} Nf6 {[%emt 0:00:32]} 4. Nc3 {[%emt 0:01:23]} c6 {[%emt 0:00:30]} 5. e3 {[%emt 0:00:36]} Nbd7 {[%emt 0:00:42]} 6. Be2 {[%emt 0:01:25]} b6 {[%emt 0:02:06]} 7. O-O {[%emt 0:00:09]} Bb7 {[%emt 0:00:47]} 8. b3 {[%emt 0:00:46]} Bd6 {[%emt 0:04:01]} 9. Bb2 {[%emt 0:00:37]} O-O {[%emt 0:03:34]} 10. Rc1 {[%emt 0:03:07]} Qe7 $1 {[%emt 0:07:22] 10...Qe7 is better than 10...Rc8. D45: Semi-Slav: 5 e3.} 11. Re1 {[%emt 0:06:29]} Ne4 {[%emt 0:05:48]} 12. Nxe4 {[%emt 0:06:42]} dxe4 {[%emt 0:00:34]} 13. Ne5 {[%emt 0:00:52]} Nxe5 {[%emt 0:05:50]} 14. dxe5 {[%emt 0:00:07]} Bb4 {[%emt 0:00:14] [#]} 15. Bc3 $146 {[%emt 0:03:26]} ({Predecessor:} 15. Rf1 Rad8 16. Qc2 Rd2 17. Qxe4 Rxe2 18. Rc2 c5 19. Qd3 Qg5 20. g3 Rxc2 21. Qxc2 {0-1 (28) Analiev,D (1588)-Kotzev,M (2394) ICCF email 2020}) 15... Bxc3 {[%emt 0:00:17]} 16. Rxc3 {[%emt 0:00:01][%cal Oc4c5]} Qg5 {[%emt 0:04:26]} 17. Qd6 {[%emt 0:04:54]} Rac8 {[%emt 0:02:02]} 18. Qa3 {[%emt 0:06:19]} Qxe5 {[%emt 0:01:58]} 19. Rcc1 {[%emt 0:02:38]} Qc7 {[%emt 0:02:45]} 20. c5 {[%emt 0:00:31]} b5 {[%emt 0:00:22]} 21. Red1 {[%emt 0:09:27]} Rcd8 {[%emt 0:06:55]} 22. Rd6 {[%emt 0:08:10]} Rxd6 {[%emt 0:00:48]} 23. cxd6 {[%emt 0:00:02]} Qb6 {[%emt 0:00:11]} 24. b4 {[%emt 0:01:45]} Bc8 {[%emt 0:00:42]} 25. Qc3 {[%emt 0:03:41]} Bd7 {[%emt 0:00:10]} 26. Bd1 {[%emt 0:03:16]} Ra8 {[%emt 0:01:59]} 27. Bc2 {[%emt 0:02:23]} a5 $1 {[%emt 0:00:18]} 28. a3 {[%emt 0:00:04]} axb4 {[%emt 0:00:39]} ({Better is} 28... f5 $15) 29. axb4 $11 {[%emt 0:00:04] The position is equal.} f5 {[%emt 0:04:46]} 30. Bb3 $36 {[%emt 0:01:01][%mdl 2048] Black is under pressure.} Qd8 {[%emt 0:00:31]} 31. Ra1 $1 {[%emt 0:02:45]} Rxa1+ {[%emt 0:00:36]} 32. Qxa1 {[%emt 0:00:24][%mdl 4096] Endgame KQB-KQB} Qf8 {[%emt 0:00:08]} 33. Qd4 {[%emt 0:04:06]} h6 {[%emt 0:06:05]} 34. g3 {[%emt 0:03:32]} Kh7 {[%emt 0:02:04]} 35. h3 {[%emt 0:01:45]} Qf6 {[%emt 0:09:02] Hoping for ...Qxd4.} 36. Qa7 {[%emt 0:00:24]} Qc3 {[%emt 0:00:55]} 37. Qxd7 {[%emt 0:00:41]} Qxb3 {[%emt 0:00:10]} 38. Qc7 {[%emt 0:03:58]} Qd1+ {[%emt 0:00:26]} 39. Kg2 {[%emt 0:00:04]} Qf3+ {[%emt 0:00:06]} 40. Kg1 {[%emt 0:00:03]} Qd1+ {[%emt 0:00:08]} 41. Kg2 {Weighted Error Value: White=0.05 (flawless) /Black=0.04 (flawless)} 1/2-1/2

[Event "Czech Open-GM 2022"]
[Site "Pardubice"]
[Date "2022.07.27"]
[Round "6.21"]
[White "Mullick, Raahil"]
[Black "Lokander, Martin"]
[Result "0-1"]
[ECO "C88"]
[WhiteElo "2237"]
[BlackElo "2483"]
[Annotator "TA"]
[PlyCount "110"]
[EventDate "2022.07.22"]
[EventType "swiss"]
[EventCountry "CZE"]
[SourceTitle "playchess.com"]
[Source "ChessBase"]
[SourceQuality "1"]
[TimeControl "40/5400+30:1800+30"]

{[%evp 14,110,35,18,42,22,36,46,35,30,47,28,30,42,34,26,31,47,46,0,0,0,20,-61,-64,-58,-56,-64,-64,-77,-66,-95,-95,-94,-52,-91,-87,-105,-95,-134,-129,-166,-160,-193,-193,-193,-193,-213,-210,-256,-256,-264,-208,-200,-184,-184,-179,-193,-194,-248,-190,-183,-161,-145,-55,-55,-69,-218,-214,-254,-234,-231,-218,-218,-203,-7781,-11972,-29967,-29968,-29968,-29969,-29969,-29970,-29970,-29971,-29971,-29972,-29973,-29974,-29974,-29975,-29976,-29977,-29975,-29974,-29974,-29975,-29975,-29976]} 1. e4 {[%emt 0:00:52]} e5 {[%emt 0:00:06]} 2. Nf3 {[%emt 0:00:05]} Nc6 {[%emt 0:00:05]} 3. Bb5 {[%emt 0:00:03][%cal Bf1b5,Bb5a4,Ba4b3,Bb3a2][%mdl 32]} a6 {[%emt 0:00:36]} 4. Ba4 {[%emt 0:00:05]} Nf6 {[%emt 0:00:23]} 5. O-O {[%emt 0:00:06]} Be7 {[%emt 0:00:24]} 6. Re1 {[%emt 0:00:04]} b5 {[%emt 0:00:06]} 7. Bb3 {[%emt 0:00:04]} O-O {[%emt 0:00:51]} 8. a4 {[%emt 0:00:12] Threatens to win with axb5.} Na5 {[%emt 0:00:25] C88: Closed Ruy Lopez: Anti-Marshall Systems.} 9. Ba2 {[%emt 0:00:28]} (9. axb5 $5 {[%cal Ra1a5]} Nxb3 10. cxb3 $14) 9... d5 {[%emt 0:00:08]} 10. exd5 {[%emt 0:16:31]} e4 {[%emt 0:02:00] White is slightly better.} 11. Ne5 {[%emt 0:00:15] [#]} c6 $146 {[%emt 0:00:04]} ({Predecessor:} 11... Bb7 12. d4 Nxd5 13. Nc3 Nxc3 14. bxc3 Bd5 15. Bf4 Bxa2 16. Rxa2 Qd5 17. Qa1 b4 {1-0 (67) Durarbayli,V (2612)-Ivanisevic,I (2650) Baku 2016}) 12. d3 {[%emt 0:32:10]} (12. Nxc6 Nxc6 13. dxc6 Bg4 $11) 12... Bd6 {[%emt 0:01:18]} 13. Bf4 {[%emt 0:00:26]} (13. Nxc6 Nxc6 14. dxc6 Ng4 $14) 13... Qc7 {[%emt 0:00:56] [#]} 14. dxe4 $1 {[%emt 0:20:11][%cal Of4g3]} cxd5 {[%emt 0:10:51]} (14... Bxe5 $2 15. d6 Qxd6 16. Qxd6 Bxd6 17. Bxd6 $18) (14... Re8 15. Nxf7) 15. exd5 {[%emt 0:07:07] aiming for axb5.} Re8 {[%emt 0:02:25][%cal Rd6e5] [#]} 16. Nxf7 {[%emt 0:02:52]} Kxf7 $11 {[%emt 0:03:17]} (16... Bxf4 $2 17. Rxe8+ Nxe8 18. d6 $18) 17. Rxe8 {[%emt 0:00:22]} Nxe8 {[%emt 0:02:22]} 18. axb5 {[%emt 0:02:45]} axb5 $15 {[%emt 0:08:05]} 19. Nc3 {[%emt 0:00:06] And now Bxd6 would win.} Bd7 {[%emt 0:01:01]} 20. Ne4 {[%emt 0:02:01]} Nc4 {[%emt 0:04:08]} 21. Nxd6+ {[%emt 0:09:02]} Ncxd6 {[%emt 0:01:18]} ({Don't do} 21... Nexd6 22. Bxc4 (22. b3 Nb6 $11) 22... Rxa1 23. Qxa1 $16) 22. Bb3 {[%emt 0:00:42] Inhibits Ra4.} Rxa1 {[%emt 0:01:47]} 23. Qxa1 {[%emt 0:00:01]} Bf5 {[%emt 0:01:00]} 24. Qe1 {[%emt 0:01:51]} Qe7 {[%emt 0:01:14][%cal Re7e1]} 25. Qc3 {[%emt 0:01:50]} Nc4 $40 {[%emt 0:03:25][%mdl 128] Inhibits Be5. Black wants a kill.} 26. h3 {[%emt 0:00:55]} Qe4 {[%emt 0:00:43][%csl LRd5,LRf4] Black is more active.} 27. Bxc4 {[%emt 0:01:36]} bxc4 {[%emt 0:00:51]} 28. Qd2 {[%emt 0:01:15]} Qxc2 {[%emt 0:00:55]} 29. Qd4 {[%emt 0:00:26]} Qe4 {[%emt 0:00:31]} 30. Qd2 {[%emt 0:00:30]} Qd3 {[%emt 0:04:41]} 31. Qa5 {[%emt 0:00:31]} Qd4 {[%emt 0:01:00] Prevents Be5.} 32. Bg3 {[%emt 0:00:34]} Nf6 {[%emt 0:01:41]} 33. d6 {[%emt 0:00:23]} Kg6 {[%emt 0:00:11]} 34. Be5 {[%emt 0:00:35]} Qd5 {[%emt 0:00:23]} 35. Qe1 {[%emt 0:00:31]} Ne4 {[%emt 0:00:01]} 36. f4 {[%emt 0:00:21]} (36. Bf4 {was called for.}) 36... h5 {[%emt 0:04:23]} 37. Qh4 {[%emt 0:00:33]} Qe6 {[%emt 0:03:37]} 38. Kh2 {[%emt 0:00:20]} Nf6 {[%emt 0:03:23]} (38... Qd7 $17 39. Kh1 Be6) 39. Qg5+ {[%emt 0:00:41]} Kf7 {[%emt 0:00:02]} 40. Qg3 {[%emt 0:00:34] This costs White the game.} (40. Bxf6 $15 Qxf6 41. Qxh5+ Ke6 42. Qe2+ Kxd6 43. Qxc4) 40... Be4 $19 {[%emt 0:05:23]} 41. Qc3 {[%emt 0:06:42]} Bc6 {[%emt 0:00:53]} 42. b3 {[%emt 0:01:35]} Nd7 $1 {[%emt 0:03:59]} 43. bxc4 {[%emt 0:04:08]} Qg6 {[%emt 0:01:40][%csl Gc6][%cal Rg6g2]} 44. Qg3 {[%emt 0:04:45]} (44. Qd2) 44... Nxe5 {[%emt 0:00:04]} 45. fxe5 {[%emt 0:00:03]} Qxg3+ $1 {[%emt 0:03:11] Black mates.} 46. Kxg3 {[%emt 0:00:06] [#] KB-KP} g5 $1 {[%emt 0:00:03]} ({Stronger than} 46... Ke6 47. Kf4 $17) 47. h4 {[%emt 0:01:02] [#]} g4 $1 {[%emt 0:00:09]} 48. d7 {[%emt 0:05:29]} Ke7 {[%emt 0:04:00]} 49. e6 Be4 {[%emt 0:00:28]} 50. c5 {[%emt 0:05:43]} Bd5 {[%emt 0:00:45]} 51. Kf2 {[%emt 0:00:20]} Bxe6 {[%emt 0:00:23]} 52. Ke3 {[%emt 0:00:12]} Kxd7 {[%emt 0:00:40]} 53. Kf4 {[%emt 0:00:30]} g3 {[%emt 0:03:31]} 54. Kxg3 {[%emt 0:00:30]} Kc6 {[%emt 0:00:05]} 55. Kf4 {[%emt 0:00:05]} Bg4 {[%emt 0:00:04] Weighted Error Value: White=0.35/Black=0.08 (flawless)} 0-1

[Event "Czech Open-GM 2022"]
[Site "Pardubice"]
[Date "2022.07.27"]
[Round "6.22"]
[White "Livaic, Leon"]
[Black "Paszewski, Mateusz"]
[Result "1-0"]
[ECO "D02"]
[WhiteElo "2576"]
[BlackElo "2277"]
[Annotator "TA"]
[PlyCount "99"]
[EventDate "2022.07.22"]
[EventType "swiss"]
[EventCountry "CZE"]
[SourceTitle "playchess.com"]
[Source "ChessBase"]
[SourceQuality "1"]
[TimeControl "40/5400+30:1800+30"]

{[%evp 18,99,0,0,0,0,0,0,0,-8,-16,-8,0,-2,15,0,14,-8,-14,-71,-69,-67,-63,-77,-66,-91,-48,-52,-43,-85,-58,-76,-75,-68,-37,-38,-20,-18,-18,-24,0,0,0,0,27,0,0,0,0,0,0,0,0,0,41,0,0,0,0,0,0,0,176,159,1252,1375,1372,1353,29950,9953,5819,12845,6696,12081,6295,6208,6187,6079,29977,29978,29982,29983,29982,29982]} 1. d4 {[%emt 0:00:49]} d5 {[%emt 0:00:14]} 2. Nf3 {[%emt 0:00:20]} Nf6 {[%emt 0:00:22]} 3. g3 {[%emt 0:01:09]} Bf5 {[%emt 0:02:50]} 4. Bg2 {[%emt 0:00:08]} c6 {[%emt 0:03:04]} 5. O-O {[%emt 0:00:08]} h6 {[%emt 0:00:21]} 6. c4 {[%emt 0:01:14]} e6 {[%emt 0:00:31]} 7. Qb3 {[%emt 0:00:31]} Qb6 {[%emt 0:01:20]} 8. c5 {[%emt 0:05:50]} Qxb3 {[%emt 0:04:25]} 9. axb3 {[%emt 0:00:05]} Be7 {[%emt 0:00:11]} 10. Nc3 {[%emt 0:02:30]} O-O {[%emt 0:02:57] now scores much better than the old 10...Na6. D11: Slav Defence: 3 Nf3 sidelines and 3...Nf6 4 e3 Bg4.} 11. b4 {[%emt 0:00:53]} a6 {[%emt 0:00:29]} 12. h3 {[%emt 0:04:28]} Nbd7 {[%emt 0:07:25] The position is equal.} 13. g4 {[%emt 0:00:07]} Bh7 {[%emt 0:01:01]} 14. Bf4 {[%emt 0:00:07]} Ne4 {[%emt 0:06:19]} 15. e3 {[%emt 0:04:27] [#]} Rfe8 $146 {[%emt 0:10:34]} ({Predecessor:} 15... f6 16. Bh2 Rae8 17. Rfc1 Nxc3 18. Rxc3 Be4 19. b5 axb5 20. Ra7 b4 21. Rc1 Rc8 22. Rxb7 {1-0 (44) Saric,I (2646)-Bluebaum,M (2647) Chess.com INT 2020}) 16. Bh2 {[%emt 0:02:25]} Bf6 {[%emt 0:06:55]} 17. Nxe4 {[%emt 0:09:28]} Bxe4 {[%emt 0:00:34]} 18. Nd2 {[%emt 0:00:06]} (18. Ne5 $11 {keeps the balance.} Nxe5 19. Bxe5) 18... Bxg2 $17 {[%emt 0:01:53]} 19. Kxg2 {[%emt 0:00:34]} e5 {[%emt 0:01:14]} 20. Nb3 {[%emt 0:00:06]} exd4 {[%emt 0:08:28]} 21. exd4 {[%emt 0:00:06]} Nf8 {[%emt 0:00:31]} 22. Rfe1 {[%emt 0:05:51]} Ne6 {[%emt 0:04:11]} 23. Rad1 {[%emt 0:00:12]} Rad8 {[%emt 0:07:55]} 24. Bd6 {[%emt 0:08:18]} g5 {[%emt 0:09:10]} 25. Re3 {[%emt 0:05:46]} Rd7 {[%emt 0:01:25]} (25... Kg7 {with more complications.} 26. Kg3 Kg6 27. Be5 Bxe5+ 28. dxe5 h5) 26. Nc1 {[%emt 0:08:00][%cal Bb3c1,Bc1e2,Be2g3,Bg3h5,Bh5f4][%mdl 32]} Be7 {[%emt 0:02:30]} 27. Bh2 {[%emt 0:05:49]} Bd8 {[%emt 0:06:16]} 28. Ne2 {[%emt 0:01:06]} Bc7 {[%emt 0:00:19]} 29. Bxc7 {[%emt 0:00:25]} Rxc7 {[%emt 0:01:41]} 30. Ng3 {[%emt 0:01:21]} Kh7 {[%emt 0:04:02]} 31. Rde1 {[%emt 0:18:09]} Kg6 {[%emt 0:01:05]} 32. Nh5 {[%emt 0:02:04]} Rf8 {[%emt 0:02:15]} 33. Rd1 {[%emt 0:00:56]} Re7 {[%emt 0:00:37]} 34. Kh2 {[%emt 0:03:36][%cal Of2f4]} Ree8 {[%emt 0:02:06]} 35. Rde1 {[%emt 0:00:52][%cal Of2f4]} Nc7 {[%emt 0:02:07]} 36. f4 {[%emt 0:02:35]} gxf4 {[%emt 0:00:27]} 37. Nxf4+ {[%emt 0:00:11]} Kg5 {[%emt 0:00:31]} 38. Kg3 {[%emt 0:00:35]} Rxe3+ {[%emt 0:00:38]} 39. Rxe3 $11 {[%emt 0:00:02][%mdl 4096] Endgame KRN-KRN} Re8 $2 {[%emt 0:00:06] Inhibits Re7.} (39... Nb5 $11) 40. Rf3 $18 {[%emt 0:00:08] And now h4+ would win.} Ne6 $2 {[%emt 0:00:54] Black cannot hold the game after this.} (40... Nb5 $16) 41. h4+ {[%emt 0:31:30]} Kf6 {[%emt 0:30:11] [#]} 42. Nxe6+ $1 {[%emt 0:02:47]} Kxe6 {[%emt 0:00:03] KR-KR} 43. Re3+ {[%emt 0:00:09]} Kd7 {[%emt 0:00:01] [#]} 44. Rxe8 $1 {[%emt 0:00:05]} Kxe8 {[%emt 0:00:02] KP-KP} 45. Kf4 {[%emt 0:00:05]} Kd7 {[%emt 0:00:16]} 46. Ke5 {[%emt 0:03:21]} Ke7 {[%emt 0:00:08]} 47. h5 {[%emt 0:01:15]} Ke8 {[%emt 0:00:09]} 48. Kd6 {[%emt 0:00:58] White mates.} Kf8 {[%emt 0:00:10]} 49. Kc7 {[%emt 0:00:07]} Ke7 {[%emt 0:00:08]} 50. Kxb7 {[%emt 0:00:05] Weighted Error Value: White=0.09 (flawless) /Black=0.49} 1-0

[Event "Czech Open-GM 2022"]
[Site "Pardubice"]
[Date "2022.07.27"]
[Round "6.23"]
[White "Plat, Vojtech"]
[Black "Klimakovs, Sergejs"]
[Result "1/2-1/2"]
[ECO "D10"]
[WhiteElo "2554"]
[BlackElo "2266"]
[Annotator "TA"]
[PlyCount "75"]
[EventDate "2022.07.22"]
[EventType "swiss"]
[EventCountry "CZE"]
[SourceTitle "playchess.com"]
[Source "ChessBase"]
[SourceQuality "1"]
[TimeControl "40/5400+30:1800+30"]

{[%evp 14,75,16,16,43,0,3,11,47,41,107,5,5,5,5,5,5,5,6,14,5,0,0,-13,-12,-20,-11,-11,-10,-35,-34,-47,-32,-35,-33,-37,-32,-36,0,-15,0,0,0,0,0,0,0,0,0,0,0,0,0,0,0,0,0,0,0,-8,-7,-11,-11,-27]} 1. d4 {[%emt 0:00:07]} d5 {[%emt 0:01:34]} 2. c4 {[%emt 0:00:06]} c6 {[%emt 0:00:03]} 3. Nc3 {[%emt 0:00:05]} Nf6 {[%emt 0:00:05]} 4. cxd5 {[%emt 0:00:05]} cxd5 {[%emt 0:00:03]} 5. Bf4 {[%emt 0:00:05]} Nc6 {[%emt 0:00:31]} 6. e3 {[%emt 0:00:05]} a6 {[%emt 0:01:31]} 7. Rc1 {[%emt 0:00:10]} Bf5 {[%emt 0:09:50]} 8. Nf3 {[%emt 0:00:12]} Qb6 {[%emt 0:14:28] D13: Slav Defence: Exchange variation without ...Bf5.} 9. Bd3 {[%emt 0:03:07]} Bxd3 {[%emt 0:11:49]} 10. Qxd3 {[%emt 0:00:05]} Qxb2 {[%emt 0:01:41]} 11. O-O {[%emt 0:00:06]} Qa3 {[%emt 0:01:13] [#] Prevents Na4.} (11... e6 $14) 12. Ne5 $146 {[%emt 0:08:37] White is more active.} (12. Qb1 $1 $16 {[%cal Rb1b7]} Qb4 13. Qc2) ({Predecessor:} 12. Qb1 Nb4 13. e4 dxe4 14. Nxe4 Nfd5 15. Rfe1 e6 16. Nd6+ Bxd6 17. Bxd6 Rd8 18. Ne5 a5 19. Qe4 Nc3 20. Qf3 {1-0 (20) Nester,I (2352)-Buturin,V (2298) Lvov 2010}) 12... e6 $1 $11 {[%emt 0:02:45]} 13. Nxc6 {[%emt 0:03:53]} bxc6 {[%emt 0:00:49]} 14. Qc2 {[%emt 0:00:04]} Rc8 $1 {[%emt 0:04:06]} 15. Na4 {[%emt 0:00:11] Hoping for Nb6.} Bd6 $1 {[%emt 0:02:16]} 16. Bxd6 {[%emt 0:08:02]} Qxd6 {[%emt 0:00:02]} 17. Qc5 {[%emt 0:03:40]} Ne4 {[%emt 0:06:57]} 18. Qa7 {[%emt 0:13:49]} O-O {[%emt 0:03:32]} 19. Rc2 {[%emt 0:02:53]} h5 {[%emt 0:21:58][%cal Bh7h5,Bh5h4,Bh4h3][%mdl 32]} 20. Rfc1 {[%emt 0:03:40]} h4 {[%emt 0:06:01]} 21. Qb7 {[%emt 0:04:32]} h3 {[%emt 0:02:01]} 22. f3 {[%emt 0:01:41][%cal Bf2f3,Bf3f4][%mdl 32]} Ng5 {[%emt 0:01:07] Strongly threatening ...e5.} 23. f4 {[%emt 0:03:41] Inhibits e5.} (23. Rxc6 {[#]} Qa3 $1 24. Qb3 (24. Rxc8 Qxe3+ 25. Kh1 hxg2+ 26. Kxg2 Qxf3+ 27. Kg1 Nh3#) 24... Qxc1+ 25. Rxc1 Rxc1+ 26. Kf2 Rh1 27. gxh3 Nxh3+ 28. Ke2 (28. Kg2 $2 Rg1+ 29. Kxh3 g6 $19) 28... Rxh2+ 29. Kd1 Ng5 $19) 23... Ne4 {[%emt 0:01:20]} 24. Nc5 {[%emt 0:00:29]} Nxc5 {[%emt 0:02:40]} 25. Rxc5 {[%emt 0:01:09]} Rb8 {[%emt 0:00:19]} 26. Qxa6 {[%emt 0:01:17] The position is equal.} Rb2 {[%emt 0:01:36]} 27. gxh3 {[%emt 0:00:06]} Qe7 {[%emt 0:00:59]} 28. R5c2 {[%emt 0:03:25]} Rfb8 {[%emt 0:00:12]} 29. Qd3 {[%emt 0:03:22]} Rxc2 {[%emt 0:01:47]} 30. Rxc2 {[%emt 0:00:09][%mdl 4096] Endgame KQR-KQR} ({Much worse is} 30. Qxc2 Qa3 31. Qc3 Qxa2 $17) 30... Rb1+ {[%emt 0:00:21]} 31. Kg2 {[%emt 0:00:05]} Qb4 {[%emt 0:00:19] And now ...Qe1 would win.} 32. Qd2 {[%emt 0:04:15]} c5 {[%emt 0:01:21]} 33. Qxb4 {[%emt 0:00:41]} ({Wrong is} 33. dxc5 $2 Qe4+ 34. Kf2 Rh1 $19) 33... cxb4 {[%emt 0:00:01]} 34. Kf3 {[%emt 0:00:46]} g6 {[%emt 0:00:18]} 35. h4 {[%emt 0:00:06]} Kg7 {[%emt 0:00:23]} 36. h5 {[%emt 0:00:30]} gxh5 {[%emt 0:00:06]} 37. Rg2+ {[%emt 0:00:24]} Kf6 {[%emt 0:00:15]} 38. Rg5 {[%emt 0:03:36] Weighted Error Value: White=0.10 (very precise) /Black=0.08 (flawless)} 1/2-1/2